[Event "*** Titled Tuesday Blitz AM"]
[Site "Chess.com"]
[Date "2020.01.07"]
[Round "5"]
[White "2L8IWUN"]
[Black "mortngabriel"]
[Result "0-1"]
[WhiteElo "2130"]
[BlackElo "2389"]
[TimeControl "180+2"]
[EndTime "10:07:12 PST"]
[Termination "mortngabriel won by resignation"]

1. d4 {[%clk 0:03:01.9]} 1... Nf6 {[%clk 0:02:59.3]} 2. Nf3 {[%clk 0:03:03.8]}
2... e6 {[%clk 0:03:00.9]} 3. Bf4 {[%clk 0:03:03.8]} 3... d5 {[%clk 0:02:58.3]}
4. e3 {[%clk 0:03:05.1]} 4... c5 {[%clk 0:02:59.7]} 5. c3 {[%clk 0:03:05.4]}
5... Nc6 {[%clk 0:02:59.8]} 6. Nbd2 {[%clk 0:03:07]} 6... cxd4 {[%clk
0:02:59.4]} 7. exd4 {[%clk 0:03:06.8]} 7... Nh5 {[%clk 0:02:57.4]} 8. Be3 {[%clk
0:03:00.7]} 8... Bd6 {[%clk 0:02:57.9]} 9. Ne5 {[%clk 0:02:59.9]} 9... g6 {[%clk
0:02:48.6]} 10. g4 {[%clk 0:02:45.5]} 10... Ng7 {[%clk 0:02:43.6]} 11. h4 {[%clk
0:02:44.1]} 11... h5 {[%clk 0:02:43.4]} 12. Nxc6 {[%clk 0:02:31.8]} 12... bxc6
{[%clk 0:02:43.2]} 13. gxh5 {[%clk 0:02:26.9]} 13... Nxh5 {[%clk 0:02:35.9]} 14.
Qf3 {[%clk 0:02:20.8]} 14... Qf6 {[%clk 0:01:45.4]} 15. Bd3 {[%clk 0:02:14.2]}
15... Nf4 {[%clk 0:01:40.1]} 16. Bxf4 {[%clk 0:02:13.1]} 16... Bxf4 {[%clk
0:01:41]} 17. Ke2 {[%clk 0:01:50.7]} 17... Rxh4 {[%clk 0:01:06.9]} 18. Rxh4
{[%clk 0:01:49]} 18... Qxh4 {[%clk 0:01:08.8]} 19. Rh1 {[%clk 0:01:49.3]} 19...
Qf6 {[%clk 0:01:10.3]} 20. Nb3 {[%clk 0:01:26.5]} 20... e5 {[%clk 0:01:08.7]}
21. dxe5 {[%clk 0:01:25.6]} 21... Qxe5+ {[%clk 0:01:10.6]} 22. Kd1 {[%clk
0:01:25.2]} 22... Kf8 {[%clk 0:00:55.2]} 23. Nd4 {[%clk 0:01:17.7]} 23... c5
{[%clk 0:00:48]} 24. Re1 {[%clk 0:01:15.7]} 24... Qg5 {[%clk 0:00:48.1]} 25. Ne2
{[%clk 0:01:01.6]} 25... Bg4 {[%clk 0:00:48.6]} 26. Qh1 {[%clk 0:00:52.6]} 26...
Kg7 {[%clk 0:00:45.4]} 27. Kc2 {[%clk 0:00:42.2]} 27... Re8 {[%clk 0:00:20.5]}
28. Nxf4 {[%clk 0:00:21]} 28... Rxe1 {[%clk 0:00:22.4]} 29. Qxe1 {[%clk
0:00:18.6]} 29... Qxf4 {[%clk 0:00:23.6]} 30. Qe3 {[%clk 0:00:16.1]} 30... Qxe3
{[%clk 0:00:24.1]} 31. fxe3 {[%clk 0:00:18]} 31... Kf6 {[%clk 0:00:20.2]} 32. b4
{[%clk 0:00:15.6]} 32... cxb4 {[%clk 0:00:12.3]} 33. cxb4 {[%clk 0:00:17.5]}
33... Bf5 {[%clk 0:00:11.8]} 34. a4 {[%clk 0:00:14.4]} 34... Bxd3+ {[%clk
0:00:09.8]} 35. Kxd3 {[%clk 0:00:16.3]} 35... Ke5 {[%clk 0:00:11.6]} 36. a5
{[%clk 0:00:16.3]} 36... g5 {[%clk 0:00:11.7]} 37. b5 {[%clk 0:00:17.2]} 37...
Kd6 {[%clk 0:00:12.6]} 38. Kd4 {[%clk 0:00:12.8]} 38... g4 {[%clk 0:00:13.8]}
39. e4 {[%clk 0:00:12.3]} 39... dxe4 {[%clk 0:00:14.4]} 40. Kxe4 {[%clk
0:00:12.6]} 40... Kc5 {[%clk 0:00:15.6]} 41. b6 {[%clk 0:00:12.1]} 41... axb6
{[%clk 0:00:16.9]} 42. axb6 {[%clk 0:00:10.9]} 42... Kxb6 {[%clk 0:00:17.6]} 43.
Kf4 {[%clk 0:00:12.8]} 43... f5 {[%clk 0:00:18.3]} 0-1

[Event "*** Titled Tuesday Blitz AM"]
[Site "Chess.com"]
[Date "2020.01.07"]
[Round "5"]
[White "Sashadav97"]
[Black "Batica1984"]
[Result "1/2-1/2"]
[WhiteElo "2562"]
[BlackElo "2787"]
[TimeControl "180+2"]
[EndTime "10:07:17 PST"]
[Termination "Game drawn by repetition"]

1. d4 {[%clk 0:03:01.9]} 1... Nf6 {[%clk 0:03:00.4]} 2. c4 {[%clk 0:03:03.4]}
2... c5 {[%clk 0:03:00.9]} 3. Nc3 {[%clk 0:03:04.6]} 3... cxd4 {[%clk
0:02:59.6]} 4. Qxd4 {[%clk 0:03:06.5]} 4... Nc6 {[%clk 0:03:00.7]} 5. Qh4 {[%clk
0:03:07.6]} 5... e6 {[%clk 0:02:42.2]} 6. e3 {[%clk 0:03:03.5]} 6... Bb4 {[%clk
0:02:37.3]} 7. Bd2 {[%clk 0:03:02.9]} 7... O-O {[%clk 0:02:37.3]} 8. Nf3 {[%clk
0:03:02.6]} 8... Be7 {[%clk 0:02:22.7]} 9. Bd3 {[%clk 0:02:30.1]} 9... h6 {[%clk
0:02:21.6]} 10. O-O {[%clk 0:02:29.4]} 10... b6 {[%clk 0:02:19.1]} 11. Rfd1
{[%clk 0:02:22.6]} 11... Bb7 {[%clk 0:02:19.2]} 12. Qg3 {[%clk 0:02:17.1]} 12...
Rc8 {[%clk 0:02:11.6]} 13. Rac1 {[%clk 0:02:09.5]} 13... Qc7 {[%clk 0:02:03.5]}
14. Qxc7 {[%clk 0:01:32.3]} 14... Rxc7 {[%clk 0:02:05.4]} 15. Be1 {[%clk
0:01:33.2]} 15... Rcc8 {[%clk 0:02:01.6]} 16. Be2 {[%clk 0:01:27]} 16... Rfd8
{[%clk 0:02:02.3]} 17. Nb5 {[%clk 0:01:21]} 17... d6 {[%clk 0:01:54.4]} 18. Nfd4
{[%clk 0:01:01]} 18... a6 {[%clk 0:01:53.3]} 19. Nxc6 {[%clk 0:01:01.1]} 19...
Rxc6 {[%clk 0:01:53.5]} 20. Nd4 {[%clk 0:01:01.9]} 20... Rc7 {[%clk 0:01:52.4]}
21. f3 {[%clk 0:01:02.6]} 21... Rdc8 {[%clk 0:01:52.5]} 22. Rb1 {[%clk
0:00:55.5]} 22... d5 {[%clk 0:01:44.4]} 23. cxd5 {[%clk 0:00:54.4]} 23... Nxd5
{[%clk 0:01:41.2]} 24. Bf2 {[%clk 0:00:55.6]} 24... Bc5 {[%clk 0:01:24.2]} 25.
a3 {[%clk 0:00:50.6]} 25... b5 {[%clk 0:01:05.1]} 26. g3 {[%clk 0:00:40.1]}
26... g6 {[%clk 0:00:29.3]} 27. e4 {[%clk 0:00:38.8]} 27... Nf6 {[%clk
0:00:26.8]} 28. Nb3 {[%clk 0:00:21.1]} 28... Bxf2+ {[%clk 0:00:27.7]} 29. Kxf2
{[%clk 0:00:23]} 29... g5 {[%clk 0:00:27.8]} 30. h3 {[%clk 0:00:23.1]} 30... Kf8
{[%clk 0:00:27.6]} 31. Rbc1 {[%clk 0:00:20]} 31... Ke7 {[%clk 0:00:27.8]} 32.
Rxc7+ {[%clk 0:00:20.6]} 32... Rxc7 {[%clk 0:00:28.8]} 33. Rc1 {[%clk
0:00:22.5]} 33... Rxc1 {[%clk 0:00:28.8]} 34. Nxc1 {[%clk 0:00:24.4]} 34... Kd6
{[%clk 0:00:29.9]} 35. Nd3 {[%clk 0:00:24]} 35... Nd7 {[%clk 0:00:30.2]} 36. b4
{[%clk 0:00:22.6]} 36... e5 {[%clk 0:00:30.1]} 37. Ke3 {[%clk 0:00:23.8]} 37...
Nb6 {[%clk 0:00:31]} 38. Nc5 {[%clk 0:00:24.2]} 38... Bc8 {[%clk 0:00:31.3]} 39.
h4 {[%clk 0:00:22.9]} 39... gxh4 {[%clk 0:00:31.2]} 40. gxh4 {[%clk 0:00:24.8]}
40... Nd7 {[%clk 0:00:31.4]} 41. Nxd7 {[%clk 0:00:23.8]} 41... Bxd7 {[%clk
0:00:32.3]} 42. f4 {[%clk 0:00:24.3]} 42... f6 {[%clk 0:00:32.5]} 43. f5 {[%clk
0:00:24.8]} 43... Be8 {[%clk 0:00:33.3]} 44. Kd3 {[%clk 0:00:23.5]} 44... Bf7
{[%clk 0:00:33.6]} 45. Kc3 {[%clk 0:00:24.8]} 45... Be8 {[%clk 0:00:33.7]} 46.
Bd1 {[%clk 0:00:22.7]} 46... Bc6 {[%clk 0:00:34.5]} 47. Bf3 {[%clk 0:00:23.5]}
47... Ke7 {[%clk 0:00:35.7]} 48. Kd3 {[%clk 0:00:24]} 48... Kd6 {[%clk
0:00:36.3]} 49. Ke3 {[%clk 0:00:24.6]} 49... Ke7 {[%clk 0:00:36.7]} 50. Kd3
{[%clk 0:00:25.6]} 50... Kd6 {[%clk 0:00:37.7]} 51. Ke3 {[%clk 0:00:26.7]} 51...
Ke7 {[%clk 0:00:38.9]} 52. Kd3 {[%clk 0:00:28]} 1/2-1/2

[Event "*** Titled Tuesday Blitz AM"]
[Site "Chess.com"]
[Date "2020.01.07"]
[Round "5"]
[White "NemtsevIgor"]
[Black "viktorskliarov"]
[Result "0-1"]
[WhiteElo "2371"]
[BlackElo "2597"]
[TimeControl "180+2"]
[EndTime "10:07:26 PST"]
[Termination "viktorskliarov won by resignation"]

1. d4 {[%clk 0:03:01.9]} 1... Nf6 {[%clk 0:02:56.6]} 2. Bf4 {[%clk 0:03:02.2]}
2... g6 {[%clk 0:02:57.1]} 3. e3 {[%clk 0:03:02.8]} 3... Bg7 {[%clk 0:02:58.4]}
4. Nf3 {[%clk 0:03:04.1]} 4... O-O {[%clk 0:03:00]} 5. Be2 {[%clk 0:03:04.9]}
5... d6 {[%clk 0:03:01.5]} 6. O-O {[%clk 0:03:05.3]} 6... Nh5 {[%clk 0:03:01.3]}
7. Bg5 {[%clk 0:03:06.2]} 7... h6 {[%clk 0:03:02.7]} 8. Bh4 {[%clk 0:03:07.4]}
8... g5 {[%clk 0:03:04.1]} 9. Nfd2 {[%clk 0:03:08.5]} 9... Nf6 {[%clk
0:03:05.1]} 10. Bg3 {[%clk 0:03:09.5]} 10... c5 {[%clk 0:03:06.3]} 11. c3 {[%clk
0:03:06.8]} 11... Nc6 {[%clk 0:03:07.4]} 12. a4 {[%clk 0:03:02.8]} 12... Bf5
{[%clk 0:03:05.5]} 13. Na3 {[%clk 0:02:58.3]} 13... e5 {[%clk 0:02:57.7]} 14.
dxc5 {[%clk 0:02:37.1]} 14... dxc5 {[%clk 0:02:57.5]} 15. Ndc4 {[%clk
0:02:38.4]} 15... Ne4 {[%clk 0:02:54.5]} 16. Nb5 {[%clk 0:02:28]} 16... Nxg3
{[%clk 0:02:03]} 17. hxg3 {[%clk 0:02:28.2]} 17... b6 {[%clk 0:02:04.1]} 18.
Nbd6 {[%clk 0:02:14.8]} 18... Be6 {[%clk 0:01:51.4]} 19. Bf3 {[%clk 0:02:11.2]}
19... Qd7 {[%clk 0:01:36.7]} 20. a5 {[%clk 0:01:56.9]} 20... Rad8 {[%clk
0:01:37]} 21. Qa4 {[%clk 0:01:54.8]} 21... Nxa5 {[%clk 0:01:22.7]} 22. Nxa5
{[%clk 0:01:40.8]} 22... Qxa4 {[%clk 0:01:20.5]} 23. Rxa4 {[%clk 0:01:40.4]}
23... Rxd6 {[%clk 0:01:21.8]} 24. Nc6 {[%clk 0:01:28.7]} 24... a5 {[%clk
0:01:14.4]} 25. b4 {[%clk 0:01:18.8]} 25... cxb4 {[%clk 0:01:05.5]} 26. cxb4
{[%clk 0:01:19.5]} 26... Bb3 {[%clk 0:01:06.4]} 27. Ra3 {[%clk 0:01:12.6]} 27...
a4 {[%clk 0:01:07.5]} 28. Ne7+ {[%clk 0:00:55.8]} 28... Kh8 {[%clk 0:01:06.2]}
29. Nf5 {[%clk 0:00:57]} 29... Rd2 {[%clk 0:00:52.2]} 30. Be4 {[%clk 0:00:48.4]}
30... b5 {[%clk 0:00:45.3]} 31. Raa1 {[%clk 0:00:47.6]} 31... Rc8 {[%clk
0:00:43.3]} 32. g4 {[%clk 0:00:38.6]} 32... Bf8 {[%clk 0:00:40.9]} 33. g3 {[%clk
0:00:30.7]} 33... Bxb4 {[%clk 0:00:21]} 34. Nxh6 {[%clk 0:00:31.5]} 34... Kg7
{[%clk 0:00:21.3]} 35. Nf5+ {[%clk 0:00:32.4]} 35... Kf6 {[%clk 0:00:21.2]} 36.
Kg2 {[%clk 0:00:33.8]} 36... Rh8 {[%clk 0:00:18.8]} 37. Rh1 {[%clk 0:00:34.3]}
37... Rxh1 {[%clk 0:00:19.3]} 38. Rxh1 {[%clk 0:00:35.2]} 38... Ke6 {[%clk
0:00:19.5]} 39. Rh6+ {[%clk 0:00:35.4]} 39... Kd7 {[%clk 0:00:20.5]} 40. Bc6+
{[%clk 0:00:33.6]} 40... Kc7 {[%clk 0:00:21.4]} 41. Bxb5 {[%clk 0:00:34.5]}
41... a3 {[%clk 0:00:22.5]} 42. Rc6+ {[%clk 0:00:35.4]} 42... Kb7 {[%clk
0:00:23.5]} 43. Ra6 {[%clk 0:00:29.3]} 43... a2 {[%clk 0:00:24.4]} 44. Kf3
{[%clk 0:00:20.7]} 44... Bc3 {[%clk 0:00:24.7]} 45. Nd6+ {[%clk 0:00:21.4]}
45... Rxd6 {[%clk 0:00:25]} 46. Rxd6 {[%clk 0:00:20.9]} 46... a1=Q {[%clk
0:00:25.9]} 0-1

[Event "*** Titled Tuesday Blitz AM"]
[Site "Chess.com"]
[Date "2020.01.07"]
[Round "5"]
[White "AdrianPetrisor1992"]
[Black "OK97"]
[Result "1-0"]
[WhiteElo "2628"]
[BlackElo "2835"]
[TimeControl "180+2"]
[EndTime "10:07:38 PST"]
[Termination "AdrianPetrisor1992 won by resignation"]

1. Nf3 {[%clk 0:03:01.9]} 1... Nf6 {[%clk 0:03:01]} 2. g3 {[%clk 0:03:02.6]}
2... g6 {[%clk 0:03:02.5]} 3. Bg2 {[%clk 0:03:03.8]} 3... Bg7 {[%clk 0:03:04.4]}
4. O-O {[%clk 0:03:05.4]} 4... O-O {[%clk 0:03:05.3]} 5. d4 {[%clk 0:03:07.3]}
5... d6 {[%clk 0:03:06.5]} 6. b3 {[%clk 0:03:08.3]} 6... c6 {[%clk 0:03:06.2]}
7. Bb2 {[%clk 0:03:09]} 7... Bf5 {[%clk 0:03:07.4]} 8. c4 {[%clk 0:03:06.5]}
8... a6 {[%clk 0:03:02.8]} 9. Nc3 {[%clk 0:03:06.3]} 9... Ne4 {[%clk 0:03:03.2]}
10. Nh4 {[%clk 0:02:52.3]} 10... Nxc3 {[%clk 0:03:03.9]} 11. Bxc3 {[%clk
0:02:54.2]} 11... Bc8 {[%clk 0:03:00.1]} 12. Qd2 {[%clk 0:02:47]} 12... b5
{[%clk 0:02:53.9]} 13. cxb5 {[%clk 0:02:30.9]} 13... axb5 {[%clk 0:02:54.8]} 14.
a4 {[%clk 0:02:32.5]} 14... bxa4 {[%clk 0:02:52.7]} 15. bxa4 {[%clk 0:02:34.4]}
15... Ba6 {[%clk 0:02:38.5]} 16. Rfb1 {[%clk 0:02:21.9]} 16... Qc7 {[%clk
0:02:28.7]} 17. Ba5 {[%clk 0:02:04.8]} 17... Qc8 {[%clk 0:02:28.5]} 18. e3
{[%clk 0:02:04.6]} 18... Ra7 {[%clk 0:02:21]} 19. Bb6 {[%clk 0:01:47.8]} 19...
Rb7 {[%clk 0:02:22.2]} 20. a5 {[%clk 0:01:49.4]} 20... Nd7 {[%clk 0:02:12.9]}
21. Qc2 {[%clk 0:01:13]} 21... d5 {[%clk 0:01:54.4]} 22. Bf1 {[%clk 0:01:04.7]}
22... Bxf1 {[%clk 0:01:52.8]} 23. Kxf1 {[%clk 0:01:06.4]} 23... e5 {[%clk
0:01:47.7]} 24. Nf3 {[%clk 0:01:02.6]} 24... e4 {[%clk 0:01:32.9]} 25. Nd2
{[%clk 0:01:01.9]} 25... c5 {[%clk 0:01:01.2]} 26. Bxc5 {[%clk 0:00:38.9]} 26...
Rc7 {[%clk 0:00:53.1]} 27. Nb3 {[%clk 0:00:32.4]} 27... Nxc5 {[%clk 0:00:26.8]}
28. Nxc5 {[%clk 0:00:34.3]} 28... Qh3+ {[%clk 0:00:27.8]} 29. Kg1 {[%clk
0:00:34.6]} 29... g5 {[%clk 0:00:11.6]} 30. Qd1 {[%clk 0:00:17.3]} 30... Rc6
{[%clk 0:00:07.7]} 31. Qf1 {[%clk 0:00:17.9]} 31... Qh5 {[%clk 0:00:05.3]} 32.
a6 {[%clk 0:00:18.7]} 32... Rh6 {[%clk 0:00:03.9]} 33. h3 {[%clk 0:00:17.8]}
33... Ra8 {[%clk 0:00:02.4]} 34. a7 {[%clk 0:00:18.4]} 34... Bf8 {[%clk
0:00:03.5]} 35. Rb8 {[%clk 0:00:18.2]} 35... Rxa7 {[%clk 0:00:05]} 36. Rxa7
{[%clk 0:00:18.1]} 36... Kg7 {[%clk 0:00:06.6]} 37. Raa8 {[%clk 0:00:15.2]}
37... Bd6 {[%clk 0:00:07.5]} 38. Rg8+ {[%clk 0:00:15.2]} 38... Kf6 {[%clk
0:00:09]} 39. Nd7+ {[%clk 0:00:09]} 39... Ke7 {[%clk 0:00:09]} 40. Ne5 {[%clk
0:00:10.3]} 40... Bxe5 {[%clk 0:00:05.9]} 41. dxe5 {[%clk 0:00:11.2]} 41... Rc6
{[%clk 0:00:07.1]} 42. Ra7+ {[%clk 0:00:11.1]} 42... Ke6 {[%clk 0:00:07.2]} 43.
Re8+ {[%clk 0:00:11]} 43... Kf5 {[%clk 0:00:08.7]} 44. g4+ {[%clk 0:00:12.1]}
1-0

[Event "*** Titled Tuesday Blitz AM"]
[Site "Chess.com"]
[Date "2020.01.07"]
[Round "5"]
[White "TigrVShlyape"]
[Black "Ba_clbaf_osed_ingo_3v21"]
[Result "1-0"]
[WhiteElo "2815"]
[BlackElo "2552"]
[TimeControl "180+2"]
[EndTime "10:07:39 PST"]
[Termination "TigrVShlyape won by resignation"]

1. d4 {[%clk 0:03:01.9]} 1... Nf6 {[%clk 0:03:01]} 2. Nf3 {[%clk 0:03:02.3]}
2... g6 {[%clk 0:03:02]} 3. Bf4 {[%clk 0:03:02.6]} 3... Bg7 {[%clk 0:03:02.3]}
4. c3 {[%clk 0:03:02.8]} 4... O-O {[%clk 0:03:04.1]} 5. Nbd2 {[%clk 0:03:01.6]}
5... d5 {[%clk 0:03:05.6]} 6. e3 {[%clk 0:03:00.5]} 6... c5 {[%clk 0:03:06.8]}
7. dxc5 {[%clk 0:02:50.9]} 7... Na6 {[%clk 0:02:10.9]} 8. Bxa6 {[%clk
0:02:27.7]} 8... bxa6 {[%clk 0:02:12.8]} 9. O-O {[%clk 0:02:28.5]} 9... Nd7
{[%clk 0:01:58.2]} 10. c6 {[%clk 0:02:12]} 10... Nb6 {[%clk 0:01:51.7]} 11. Rc1
{[%clk 0:02:00.4]} 11... Qe8 {[%clk 0:01:37.5]} 12. c7 {[%clk 0:01:53.5]} 12...
e5 {[%clk 0:01:38.2]} 13. Bg3 {[%clk 0:01:54.4]} 13... Bb7 {[%clk 0:01:31.3]}
14. c4 {[%clk 0:01:52.8]} 14... Rc8 {[%clk 0:01:23.4]} 15. cxd5 {[%clk
0:01:45.5]} 15... Nxd5 {[%clk 0:01:25.1]} 16. Qb3 {[%clk 0:01:43.4]} 16... Ba8
{[%clk 0:01:18.5]} 17. Rc5 {[%clk 0:01:29.4]} 17... Nxc7 {[%clk 0:01:14.3]} 18.
Bxe5 {[%clk 0:01:28.4]} 18... Ne6 {[%clk 0:01:04.7]} 19. Rxc8 {[%clk 0:01:24.6]}
19... Qxc8 {[%clk 0:01:06.3]} 20. Bxg7 {[%clk 0:01:25]} 20... Kxg7 {[%clk
0:01:04.6]} 21. Qc3+ {[%clk 0:01:10.2]} 21... Qxc3 {[%clk 0:00:57.7]} 22. bxc3
{[%clk 0:01:10.8]} 22... Bxf3 {[%clk 0:00:56.8]} 23. Nxf3 {[%clk 0:01:10.5]}
23... Rb8 {[%clk 0:00:43.7]} 24. Nd4 {[%clk 0:01:03.8]} 24... Nc5 {[%clk
0:00:41.4]} 25. Nb3 {[%clk 0:00:57.3]} 25... Ne4 {[%clk 0:00:39.3]} 26. Rc1
{[%clk 0:00:56.7]} 26... a5 {[%clk 0:00:35.4]} 27. f3 {[%clk 0:00:54.3]} 27...
a4 {[%clk 0:00:29.8]} 28. Nd4 {[%clk 0:00:51.8]} 28... Nc5 {[%clk 0:00:30.7]}
29. Rc2 {[%clk 0:00:30.5]} 29... a3 {[%clk 0:00:30.3]} 30. Kf1 {[%clk
0:00:30.7]} 30... Kf6 {[%clk 0:00:23.7]} 31. Ke2 {[%clk 0:00:31.3]} 31... h6
{[%clk 0:00:21.4]} 32. e4 {[%clk 0:00:30.1]} 32... Rb6 {[%clk 0:00:20.7]} 33.
Ke3 {[%clk 0:00:27.5]} 33... g5 {[%clk 0:00:21.5]} 34. g3 {[%clk 0:00:24.5]}
34... Ke7 {[%clk 0:00:15.9]} 35. f4 {[%clk 0:00:21.9]} 35... Kd7 {[%clk
0:00:16.3]} 36. e5 {[%clk 0:00:21.9]} 36... Ne6 {[%clk 0:00:12.1]} 37. f5 {[%clk
0:00:22.1]} 37... Nc7 {[%clk 0:00:11.8]} 38. c4 {[%clk 0:00:22]} 38... Rb2
{[%clk 0:00:06.9]} 39. Kd3 {[%clk 0:00:20]} 39... Rb1 {[%clk 0:00:07.8]} 40. Kc3
{[%clk 0:00:18.8]} 40... Na6 {[%clk 0:00:06.4]} 41. Rd2 {[%clk 0:00:18.6]} 41...
Ke8 {[%clk 0:00:03.8]} 42. Nc6 {[%clk 0:00:18.3]} 42... Kf8 {[%clk 0:00:03.2]}
43. f6 {[%clk 0:00:18.9]} 43... Kg8 {[%clk 0:00:04.4]} 44. Rd8+ {[%clk
0:00:17.3]} 44... Kh7 {[%clk 0:00:05.7]} 45. e6 {[%clk 0:00:18.5]} 45... fxe6
{[%clk 0:00:03.7]} 46. f7 {[%clk 0:00:19.1]} 1-0

[Event "*** Titled Tuesday Blitz AM"]
[Site "Chess.com"]
[Date "2020.01.07"]
[Round "5"]
[White "ChessQueen"]
[Black "OneTrickPony_82"]
[Result "1-0"]
[WhiteElo "2663"]
[BlackElo "2434"]
[TimeControl "180+2"]
[EndTime "10:07:54 PST"]
[Termination "ChessQueen won by resignation"]

1. Nf3 {[%clk 0:03:01.9]} 1... Nf6 {[%clk 0:03:00.6]} 2. g3 {[%clk 0:03:02.7]}
2... d5 {[%clk 0:03:01.4]} 3. Bg2 {[%clk 0:03:03.9]} 3... c5 {[%clk 0:03:02.7]}
4. d4 {[%clk 0:03:03.7]} 4... cxd4 {[%clk 0:03:02.5]} 5. Nxd4 {[%clk 0:03:03.6]}
5... e5 {[%clk 0:03:00.9]} 6. Nb3 {[%clk 0:03:03.5]} 6... Be6 {[%clk 0:02:53.6]}
7. O-O {[%clk 0:03:02.4]} 7... Be7 {[%clk 0:02:46.2]} 8. Nc3 {[%clk 0:02:57.6]}
8... O-O {[%clk 0:02:39.3]} 9. Bg5 {[%clk 0:02:58.4]} 9... Nbd7 {[%clk
0:02:40.5]} 10. e3 {[%clk 0:02:09.4]} 10... h6 {[%clk 0:02:37.7]} 11. Bxf6
{[%clk 0:02:10.1]} 11... Nxf6 {[%clk 0:02:39.1]} 12. h3 {[%clk 0:02:02.4]} 12...
Qc8 {[%clk 0:02:35]} 13. Kh2 {[%clk 0:02:02.7]} 13... Rd8 {[%clk 0:02:35.7]} 14.
f4 {[%clk 0:02:01.6]} 14... d4 {[%clk 0:02:13.7]} 15. exd4 {[%clk 0:01:53.6]}
15... exd4 {[%clk 0:02:13.9]} 16. Ne2 {[%clk 0:01:54.4]} 16... Bc4 {[%clk
0:02:06.1]} 17. Rf2 {[%clk 0:01:51.5]} 17... d3 {[%clk 0:02:04.2]} 18. cxd3
{[%clk 0:01:51.7]} 18... Rxd3 {[%clk 0:01:52.8]} 19. Qc2 {[%clk 0:01:48.1]}
19... Ba6 {[%clk 0:01:51.5]} 20. Rc1 {[%clk 0:01:44.1]} 20... Qd7 {[%clk
0:01:30.7]} 21. Nc3 {[%clk 0:01:41]} 21... Rd8 {[%clk 0:01:20.9]} 22. Ne4 {[%clk
0:01:28.5]} 22... Nxe4 {[%clk 0:01:18.4]} 23. Bxe4 {[%clk 0:01:29.5]} 23... Rd6
{[%clk 0:01:12.6]} 24. Nc5 {[%clk 0:01:27.4]} 24... Qb5 {[%clk 0:01:02.1]} 25.
Nxa6 {[%clk 0:01:02.4]} 25... bxa6 {[%clk 0:01:03.2]} 26. a3 {[%clk 0:00:52.6]}
26... Bf6 {[%clk 0:01:03.8]} 27. b4 {[%clk 0:00:51.2]} 27... Qb6 {[%clk
0:00:57.2]} 28. Re2 {[%clk 0:00:47.2]} 28... h5 {[%clk 0:00:54.6]} 29. h4 {[%clk
0:00:46.9]} 29... a5 {[%clk 0:00:51.9]} 30. Qc5 {[%clk 0:00:34.8]} 30... Qxc5
{[%clk 0:00:35.9]} 31. bxc5 {[%clk 0:00:33.8]} 31... Rd2 {[%clk 0:00:34.5]} 32.
Rxd2 {[%clk 0:00:23.3]} 32... Rxd2+ {[%clk 0:00:35.3]} 33. Kh3 {[%clk
0:00:20.2]} 33... Bd8 {[%clk 0:00:22.9]} 34. c6 {[%clk 0:00:20.2]} 34... Bc7
{[%clk 0:00:22.8]} 35. Rc5 {[%clk 0:00:20.8]} 35... Re2 {[%clk 0:00:22.3]} 36.
Bf3 {[%clk 0:00:20.7]} 36... Re7 {[%clk 0:00:18.9]} 37. Rxh5 {[%clk 0:00:20.8]}
37... g6 {[%clk 0:00:16.8]} 38. Rd5 {[%clk 0:00:20.6]} 38... Kf8 {[%clk
0:00:16.7]} 39. a4 {[%clk 0:00:21.1]} 39... Re3 {[%clk 0:00:15.7]} 40. Kg2
{[%clk 0:00:20.6]} 40... Re7 {[%clk 0:00:10.7]} 41. h5 {[%clk 0:00:20.5]} 41...
gxh5 {[%clk 0:00:11.5]} 42. Rxh5 {[%clk 0:00:21.2]} 42... Kg7 {[%clk 0:00:10.7]}
43. Rd5 {[%clk 0:00:22.3]} 43... Bb6 {[%clk 0:00:11.2]} 44. Rd1 {[%clk
0:00:21.3]} 44... Kf6 {[%clk 0:00:12.1]} 45. g4 {[%clk 0:00:21.4]} 45... Bc7
{[%clk 0:00:11.9]} 46. Kg3 {[%clk 0:00:21.1]} 46... Ke6 {[%clk 0:00:10.2]} 47.
g5 {[%clk 0:00:20.2]} 47... Kf5 {[%clk 0:00:04.7]} 48. Rd5+ {[%clk 0:00:21.2]}
48... Kg6 {[%clk 0:00:05.6]} 49. Kg4 {[%clk 0:00:21.9]} 49... Kg7 {[%clk
0:00:04.5]} 50. f5 {[%clk 0:00:22.3]} 50... Re1 {[%clk 0:00:05.6]} 51. Rd7
{[%clk 0:00:19.9]} 51... Rg1+ {[%clk 0:00:06]} 52. Kh4 {[%clk 0:00:20.8]} 52...
Rh1+ {[%clk 0:00:06.2]} 53. Bxh1 {[%clk 0:00:21.5]} 1-0